bitfinex-derivatives/quotes_BTCF0:USTF0_20241128
["timestamp","ask_amount","ask_price","bid_price","bid_amount"]
[1732772050849,0.052188,95726.0,95724.0,0.01505488]
[1732772051150,0.052188,95726.0,95724.0,0.002]
[1732772051353,0.052188,95726.0,95723.0,0.05231943]
[1732772051539,0.052188,95726.0,95725.0,0.002]
[1732772051944,0.36140001,95727.0,95726.0,0.052188]
[1732772052243,0.1584,95728.0,95726.0,0.06524241]
[1732772052442,0.1584,95728.0,95727.0,0.01305441]
[1732772053251,0.0332,95729.0,95727.0,0.06524141]
[1732772053545,0.0332,95729.0,95728.0,0.01305441]
[1732772054449,0.0332,95729.0,95728.0,0.20029291]
[1732772055452,0.1250001,95730.0,95728.0,0.01305396]
[1732772055649,0.1250001,95731.0,95729.0,0.01305396]
[1732772055850,0.1250001,95731.0,95730.0,0.20045953]
[1732772056449,0.3608,95735.0,95733.0,0.052183]
[1732772056753,0.3608,95735.0,95733.0,0.23964668]
[1732772056952,0.46968001,95740.0,95736.0,0.052182]
[1732772057149,0.15952,95739.0,95736.0,0.052182]
[1732772057350,0.15952,95739.0,95736.0,0.23963037]
[1732772058552,0.052181,95738.0,95736.0,0.18744837]
[1732772058956,0.052182,95736.0,95735.0,0.18744837]
[1732772059154,0.052182,95736.0,95735.0,0.20050149]
[1732772059350,0.052182,95736.0,95735.0,0.01305312]
[1732772059551,0.052182,95736.0,95735.0,0.20050149]
[1732772059948,0.052182,95736.0,95735.0,0.01305312]
[1732772060455,0.052182,95736.0,95735.0,0.20050149]
[1732772060646,0.055182,95736.0,95735.0,0.20050149]
[1732772060960,0.055182,95736.0,95734.0,0.052183]
[1732772060961,0.055182,95736.0,95734.0,0.23963137]
[1732772061367,0.055182,95736.0,95735.0,0.01305326]
[1732772061551,0.055182,95736.0,95735.0,0.20050163]
[1732772062054,0.055182,95736.0,95735.0,0.18744837]
[1732772062253,0.055182,95736.0,95735.0,0.21355479]
[1732772063355,0.055182,95736.0,95735.0,0.21355473]
[1732772063556,0.055182,95736.0,95735.0,0.02610636]
[1732772063756,0.055182,95736.0,95735.0,0.18744837]
[1732772064459,0.055182,95736.0,95734.0,0.23963137]
[1732772064760,0.055182,95736.0,95735.0,0.20050176]
[1732772064955,0.055182,95736.0,95735.0,0.18744837]
[1732772065150,0.055182,95736.0,95734.0,0.23963137]
[1732772065355,0.055182,95736.0,95735.0,0.18744837]
[1732772065551,0.055182,95736.0,95735.0,0.20050158]
[1732772065859,0.055182,95736.0,95734.0,0.23963137]
[1732772066062,0.055182,95736.0,95735.0,0.20050157]
[1732772066861,0.052182,95736.0,95735.0,0.20050159]
[1732772067167,0.055182,95736.0,95735.0,0.20050159]
[1732772067367,0.055182,95736.0,95734.0,0.052183]
[1732772067368,0.055182,95736.0,95734.0,0.23963137]
[1732772067572,0.415982,95736.0,95735.0,0.20050159]
[1732772067756,0.415982,95736.0,95734.0,0.23963137]
[1732772067957,0.412982,95736.0,95734.0,0.052183]
[1732772068157,0.415982,95736.0,95734.0,0.052183]
[1732772068565,0.3638,95736.0,95730.0,0.18744837]
[1732772068771,0.052185,95731.0,95730.0,0.18752881]
[1732772068974,0.052185,95731.0,95730.0,0.20058304]
[1732772069169,0.052185,95731.0,95730.0,0.01305423]
[1732772069567,0.052185,95731.0,95730.0,0.20058304]
[1732772070074,0.052185,95731.0,95730.0,0.01305423]
[1732772070480,0.052185,95731.0,95730.0,0.20058304]
[1732772070665,0.052185,95731.0,95729.0,0.23971481]
[1732772071170,0.053185,95731.0,95729.0,0.052186]
[1732772071367,0.053185,95731.0,95729.0,0.23971481]
[1732772071565,0.053185,95731.0,95730.0,0.01320774]
[1732772071766,0.052185,95731.0,95730.0,0.01320774]
[1732772071966,0.052185,95731.0,95730.0,0.02626199]
[1732772073572,0.51753299,95736.0,95729.0,0.052186]
[1732772073773,0.3608,95736.0,95733.0,0.18765247]
[1732772074762,0.3608,95736.0,95729.0,0.052186]
[1732772074763,0.052183,95735.0,95734.0,0.01343807]
[1732772075071,0.20827599,95735.0,95734.0,0.01343807]
[1732772075274,0.20827599,95735.0,95732.0,0.18765247]
[1732772075275,0.15609299,95735.0,95732.0,0.18765247]
[1732772075470,0.052184,95733.0,95732.0,0.18765247]
[1732772077071,0.052184,95732.0,95731.0,0.18765247]
[1732772077576,0.002,95733.0,95729.0,0.052186]
[1732772077577,0.052185,95730.0,95729.0,0.052186]
[1732772078570,0.052188,95726.0,95725.0,0.052188]
[1732772079471,0.052188,95726.0,95725.0,0.06554919]
[1732772080666,0.052188,95726.0,95725.0,0.06754919]
[1732772081472,0.052188,95726.0,95725.0,0.32974929]
[1732772081775,0.052188,95726.0,95725.0,0.33074929]
[1732772083569,0.052188,95726.0,95725.0,0.08160382]
[1732772084070,0.052188,95726.0,95725.0,0.33074929]
[1732772084470,0.052188,95726.0,95725.0,0.08160382]
[1732772084868,0.052188,95726.0,95725.0,0.33074929]
[1732772086371,0.052188,95726.0,95725.0,0.08160382]
[1732772086566,0.3608,95729.0,95728.0,0.052186]
[1732772086767,0.3608,95729.0,95728.0,0.07860182]
[1732772086966,0.12517922,95733.0,95728.0,0.03620605]
[1732772087175,0.3608,95741.0,95729.0,0.70079417]
[1732772087176,0.09387986,95734.0,95729.0,0.70079417]
[1732772087475,0.12517922,95738.0,95730.0,0.03625939]
[1732772087670,0.12517922,95738.0,95737.0,0.052182]
[1732772087870,0.12517922,95738.0,95737.0,0.07865116]
[1732772088271,0.12517922,95738.0,95737.0,0.32880812]
[1732772088476,0.12517922,95738.0,95737.0,0.07865116]
[1732772088671,0.12517922,95738.0,95737.0,0.32877124]
[1732772088979,0.12517922,95739.0,95738.0,0.052181]
[1732772089271,0.12517922,95739.0,95738.0,0.32875673]
[1732772089473,0.12517922,95739.0,95738.0,0.27657573]
[1732772089474,0.12513385,95739.0,95738.0,0.27657573]
[1732772089678,0.12513385,95739.0,95738.0,0.32875673]
[1732772090371,0.12513385,95740.0,95739.0,0.05218]
[1732772090681,0.12513385,95740.0,95739.0,0.07864916]
[1732772091777,0.13013385,95740.0,95739.0,0.07864916]
[1732772092179,0.13013385,95740.0,95739.0,0.07845247]
[1732772093680,0.005,95740.0,95739.0,0.07845247]
[1732772095481,0.005,95740.0,95739.0,0.06539956]
[1732772095782,0.005,95740.0,95739.0,0.0784519]
[1732772097877,0.05718,95740.0,95739.0,0.0784519]
[1732772098071,0.05718,95740.0,95739.0,0.0262719]
[1732772098280,0.05718,95740.0,95739.0,0.01305234]
[1732772099191,0.052182,95736.0,95735.0,0.24983153]
[1732772099487,0.052182,95736.0,95735.0,0.0652355]
[1732772100286,0.055182,95736.0,95735.0,0.0652355]
[1732772101391,0.055182,95736.0,95735.0,0.06523561]
[1732772103980,0.09677868,95736.0,95732.0,0.18738636]
[1732772104181,0.052184,95732.0,95731.0,0.18738636]
[1732772104389,0.052184,95732.0,95726.0,0.052187]
[1732772104390,0.12508692,95732.0,95726.0,0.052187]
[1732772104697,0.12508692,95729.0,95725.0,0.18738636]
[1732772104888,0.14936,95731.0,95723.0,0.00013043]
[1732772104889,0.052189,95724.0,95723.0,0.00013043]
[1732772105092,0.052189,95724.0,95723.0,0.05231943]
[1732772105397,0.3608,95725.0,95724.0,0.052189]
[1732772105588,0.12508692,95728.0,95724.0,0.0130551]
[1732772105786,0.17727292,95729.0,95728.0,0.052186]
[1732772105990,0.052186,95729.0,95728.0,0.052186]
[1732772106790,0.052186,95729.0,95728.0,0.06524033]
[1732772107393,0.052186,95729.0,95728.0,0.052186]
[1732772107885,0.052186,95729.0,95728.0,0.06524031]
[1732772108486,0.17727292,95729.0,95728.0,0.06524031]
[1732772108887,0.17727292,95729.0,95728.0,0.052186]
[1732772109287,0.052186,95729.0,95728.0,0.06524045]
[1732772109596,0.17727292,95729.0,95728.0,0.06524045]
[1732772110101,0.17727292,95729.0,95728.0,0.052186]
[1732772110287,0.17727292,95729.0,95728.0,0.06524038]
[1732772110489,0.17727292,95729.0,95728.0,0.052186]
[1732772110490,0.052186,95729.0,95728.0,0.052186]
[1732772110698,0.052186,95729.0,95728.0,0.06524024]
[1732772111485,0.12508692,95732.0,95728.0,0.01305424]
[1732772111692,0.3608,95744.0,95728.0,0.01305424]
[1732772111693,0.09378809,95736.0,95729.0,0.03615215]
[1732772111891,0.09378809,95736.0,95735.0,0.052183]
[1732772112092,0.09378809,95739.0,95737.0,0.052182]
[1732772112395,0.05218,95740.0,95738.0,0.03639131]
[1732772112396,0.17726692,95740.0,95738.0,0.03639131]
[1732772112586,0.05218,95740.0,95739.0,0.02660075]
[1732772112792,0.17726692,95740.0,95739.0,0.02660075]
[1732772113394,0.05218,95740.0,95739.0,0.02660075]
[1732772113593,0.05718,95740.0,95739.0,0.02660075]
[1732772114489,0.20654,95740.0,95739.0,0.02660075]
[1732772115094,0.20654,95740.0,95739.0,0.0265201]
[1732772116502,0.20654,95740.0,95739.0,0.01346756]
[1732772118603,0.20654,95740.0,95730.0,0.18745942]
[1732772118604,0.052185,95731.0,95730.0,0.18745942]
[1732772118903,0.14936,95731.0,95730.0,0.21030306]
[1732772119099,0.2431738,95731.0,95730.0,0.21030306]
[1732772119407,0.24317533,95731.0,95730.0,0.21030306]
[1732772119606,0.14936,95731.0,95730.0,0.02284364]
[1732772119794,0.15036,95731.0,95730.0,0.02284364]
[1732772120698,0.21606,95731.0,95730.0,0.00979013]
[1732772121004,0.21606,95731.0,95724.0,0.18745942]
[1732772121005,0.21606,95731.0,95724.0,0.23964742]
[1732772121195,0.09381934,95725.0,95724.0,0.23964742]
[1732772121396,0.09381934,95725.0,95724.0,0.26249246]
[1732772122602,0.09381934,95726.0,95724.0,0.26249246]
[1732772122805,0.09381934,95726.0,95725.0,0.02284504]
[1732772124303,0.09381934,95726.0,95725.0,0.02484504]
[1732772125392,0.09381934,95726.0,95725.0,0.02484501]
[1732772125594,0.09381934,95726.0,95725.0,0.02584501]
[1732772126198,0.052187,95727.0,95725.0,0.02584501]
[1732772126403,0.052187,95727.0,95726.0,0.02284501]
[1732772128695,0.052187,95727.0,95726.0,0.02384501]
[1732772129006,0.052187,95727.0,95726.0,0.02726733]
[1732772129205,0.052187,95727.0,95726.0,0.02384515]
[1732772129407,0.365587,95727.0,95726.0,0.001]
[1732772129607,0.365587,95727.0,95726.0,0.002]
[1732772129906,0.365587,95727.0,95723.0,0.00013043]
[1732772129907,0.052189,95724.0,95723.0,0.00013043]
[1732772130105,0.412989,95724.0,95723.0,0.00013043]
[1732772130307,0.052194,95714.0,95706.0,0.18755178]
[1732772130619,0.0522,95703.0,95702.0,0.18755178]
[1732772130903,0.20156,95703.0,95702.0,0.02285064]
[1732772131310,0.20156,95703.0,95702.0,0.02293597]
[1732772131509,0.20156,95703.0,95702.0,8.533e-05]
[1732772132207,0.29529969,95703.0,95702.0,8.533e-05]
[1732772132624,0.20156,95703.0,95702.0,0.00608533]
[1732772133104,0.20256,95703.0,95702.0,0.01508533]
[1732772133505,0.32749068,95703.0,95702.0,0.01508533]
[1732772134305,0.20256,95703.0,95702.0,0.01508533]
[1732772135104,0.32749068,95703.0,95702.0,0.01508533]
[1732772135412,0.20256,95703.0,95702.0,0.01508533]
[1732772142315,0.56336,95703.0,95702.0,0.01508533]
[1732772144916,0.5634,95703.0,95702.0,0.01508533]
[1732772152716,0.5634,95703.0,95702.0,0.06728633]
[1732772156415,0.3618,95703.0,95702.0,0.06728633]
[1732772156627,0.5112,95703.0,95702.0,0.06728633]
[1732772156821,0.5112,95703.0,95702.0,0.08034407]
[1732772157126,0.5634,95703.0,95702.0,0.08034407]
[1732772157323,0.68833068,95703.0,95702.0,0.25470801]
[1732772157518,0.5634,95703.0,95702.0,0.06728633]
[1732772158327,0.5634,95703.0,95702.0,0.01508533]
[1732772159527,0.5634,95703.0,95702.0,0.06728633]
[1732772160030,0.5112,95703.0,95702.0,0.06728633]
[1732772160421,0.5634,95703.0,95702.0,0.31711786]
[1732772160726,0.5634,95703.0,95702.0,0.06728633]
[1732772161632,0.5634,95703.0,95702.0,0.30211786]
[1732772161633,0.5624,95703.0,95702.0,0.30211786]
[1732772161822,0.5634,95703.0,95702.0,0.05228633]
[1732772162023,0.414,95703.0,95702.0,0.30211786]
[1732772162224,0.3618,95703.0,95702.0,0.30211786]
[1732772162434,0.001,95703.0,95702.0,0.30211786]
[1732772162648,0.12524289,95703.0,95702.0,0.37882415]
[1732772162822,0.09392766,95705.0,95702.0,0.7476867]
[1732772163024,0.00013003,95712.0,95711.0,0.052196]
[1732772163231,0.00013003,95712.0,95711.0,0.412996]
[1732772163931,0.00013003,95712.0,95711.0,0.07504698]
[1732772164927,0.00613003,95712.0,95711.0,0.07504698]
[1732772165129,0.00713003,95712.0,95711.0,0.43584698]
[1732772165729,0.00713003,95712.0,95711.0,0.42278916]
[1732772165935,0.00713003,95712.0,95711.0,0.43584466]
[1732772166930,0.00713003,95712.0,95711.0,0.07504466]
[1732772167126,0.00713003,95712.0,95711.0,0.0652515]
[1732772167532,0.00713003,95712.0,95711.0,0.31498181]
[1732772167936,0.00713003,95712.0,95711.0,0.32477387]
[1732772168234,0.00713003,95712.0,95711.0,0.0652515]
[1732772168436,0.00713003,95712.0,95711.0,0.0130555]
[1732772168631,0.00713003,95712.0,95703.0,0.31261076]
[1732772168632,0.46383003,95712.0,95708.0,0.18730608]
[1732772168826,0.052198,95706.0,95705.0,0.18730608]
[1732772169030,0.0522,95704.0,95702.0,0.18739141]
[1732772169234,0.0522,95704.0,95702.0,8.533e-05]
[1732772172338,0.0532,95704.0,95702.0,8.533e-05]
[1732772176941,0.15630147,95703.0,95702.0,8.533e-05]
[1732772177337,0.20950147,95704.0,95702.0,8.533e-05]
[1732772178443,0.0532,95704.0,95702.0,8.533e-05]
[1732772178832,0.001,95703.0,95702.0,8.533e-05]
[1732772179040,0.15730147,95703.0,95702.0,8.533e-05]
[1732772179245,0.001,95703.0,95702.0,8.533e-05]
[1732772179831,0.31448,95703.0,95684.0,0.18730608]
[1732772180030,0.31448,95703.0,95681.0,0.18730608]
[1732772180031,0.052211,95683.0,95681.0,0.18730608]
[1732772180245,0.21058,95682.0,95677.0,0.18730608]
[1732772180435,0.052216,95674.0,95673.0,0.18730608]
[1732772180632,0.052216,95674.0,95673.0,0.01306159]
[1732772181144,0.052216,95674.0,95673.0,0.05232347]
[1732772181348,0.052216,95674.0,95673.0,0.00010747]
[1732772182350,0.053216,95674.0,95673.0,0.00810747]
[1732772183236,0.053216,95674.0,95673.0,0.01210747]
[1732772185738,0.05954934,95674.0,95673.0,0.01210747]
[1732772193552,0.20886934,95674.0,95673.0,0.01210747]
[1732772195943,0.00733334,95674.0,95673.0,0.01210747]
[1732772196143,0.0309,95686.0,95673.0,0.01210747]
[1732772196144,0.00060001,95687.0,95673.0,0.32566747]
[1732772196452,0.51710147,95697.0,95677.0,0.08258126]
[1732772196453,0.052213,95681.0,95677.0,0.08258126]
[1732772196656,0.1492,95684.0,95680.0,0.052212]
[1732772196850,0.1492,95684.0,95681.0,0.052212]
[1732772197251,0.1492,95684.0,95680.0,0.18730608]
[1732772197547,0.1492,95684.0,95682.0,0.052211]
[1732772198746,0.1492,95684.0,95682.0,0.23951708]
[1732772198945,0.1492,95684.0,95682.0,0.058211]
[1732772199354,0.052211,95683.0,95682.0,0.24551708]
[1732772199553,0.052211,95683.0,95682.0,0.06800626]
[1732772199742,0.052211,95683.0,95682.0,0.25531227]
[1732772200159,0.052211,95683.0,95682.0,0.06800619]
[1732772200757,0.052211,95683.0,95682.0,0.058211]
[1732772201350,0.052211,95683.0,95682.0,0.056211]
[1732772201547,0.052211,95683.0,95682.0,0.058211]
[1732772202149,0.052211,95683.0,95682.0,0.006]
[1732772205754,0.052211,95683.0,95682.0,0.25570313]
[1732772206158,0.052211,95683.0,95682.0,0.006]
[1732772207053,0.052211,95683.0,95682.0,0.25570313]
[1732772208054,0.052211,95683.0,95682.0,0.006]
[1732772209355,0.052211,95683.0,95682.0,0.01579545]
[1732772209950,0.052211,95683.0,95682.0,0.01579538]
[1732772210358,0.052211,95683.0,95682.0,0.006]
[1732772212254,0.052211,95683.0,95682.0,0.19351951]
[1732772212451,0.052211,95683.0,95682.0,0.006]
[1732772212652,0.052215,95676.0,95675.0,0.18751951]
[1732772212858,0.052215,95676.0,95673.0,0.00010747]
[1732772212859,0.052216,95674.0,95673.0,0.18762698]
[1732772213158,0.201416,95674.0,95673.0,0.00010747]
[1732772215172,0.207416,95674.0,95673.0,0.00110747]
[1732772215349,0.210416,95674.0,95673.0,0.00110747]
[1732772216059,0.210416,95674.0,95657.0,0.36483576]
[1732772216060,0.052217,95673.0,95661.0,0.18751951]
[1732772216261,0.052224,95660.0,95658.0,0.18751951]
[1732772216452,0.181,95659.0,95658.0,0.18751951]
[1732772216653,0.052226,95656.0,95652.0,0.24970313]
[1732772216857,0.052226,95656.0,95655.0,0.18762146]
[1732772217161,0.052226,95656.0,95655.0,0.00012587]
[1732772217564,0.365866,95656.0,95655.0,0.00012587]
[1732772217872,0.365866,95656.0,95641.0,0.18762146]
[1732772217873,0.052233,95643.0,95641.0,0.18762146]
[1732772218057,0.39622126,95656.0,95639.0,0.18762146]
[1732772218058,0.052234,95641.0,95639.0,0.18762146]
[1732772218253,0.052234,95641.0,95635.0,0.24970313]
[1732772218254,0.052237,95636.0,95635.0,0.24970313]
[1732772218558,0.052237,95636.0,95634.0,0.00156841]
[1732772218762,0.052237,95636.0,95635.0,8.956e-05]
[1732772219368,0.052237,95636.0,95635.0,0.1875018]
[1732772219960,0.052237,95636.0,95635.0,8.956e-05]
[1732772220170,0.052237,95636.0,95635.0,0.00988947]
[1732772220463,0.052237,95636.0,95635.0,0.19730171]
[1732772220659,0.052237,95636.0,95635.0,0.00988947]
[1732772220859,0.181,95640.0,95635.0,0.21230171]
[1732772221163,0.181,95640.0,95636.0,0.19721182]
[1732772221465,0.181,95640.0,95635.0,0.06732656]
[1732772221857,0.0318,95640.0,95635.0,0.05632656]
[1732772222167,0.1492,95639.0,95635.0,0.05632656]
[1732772222567,0.052236,95637.0,95635.0,0.05632656]
[1732772222971,0.052236,95637.0,95635.0,0.00408956]
[1732772223472,0.052236,95637.0,95636.0,0.002]
[1732772224666,0.052236,95637.0,95636.0,0.001]
[1732772225270,0.052248,95616.0,95612.0,0.18741224]
[1732772225571,0.14908,95620.0,95609.0,0.052251]
[1732772225776,0.14908,95620.0,95608.0,0.36136]
[1732772225777,0.052249,95614.0,95611.0,0.05225]
[1732772226270,0.052249,95614.0,95612.0,9.278e-05]
[1732772227572,0.053249,95614.0,95612.0,9.278e-05]
[1732772227761,0.053249,95614.0,95612.0,0.00709278]
[1732772227967,0.052249,95614.0,95612.0,0.00709278]
[1732772228175,0.053249,95614.0,95612.0,0.01609278]
[1732772228468,0.053249,95614.0,95612.0,0.06134278]
[1732772228769,0.053249,95614.0,95612.0,0.06834278]
[1732772229970,0.053249,95614.0,95612.0,0.01609278]
[1732772231273,0.0634,95619.0,95617.0,0.052247]
[1732772231475,0.14912,95618.0,95617.0,0.052247]
[1732772231866,0.201367,95618.0,95617.0,0.052247]
[1732772232475,0.201367,95618.0,95617.0,0.057247]
[1732772233073,0.201367,95618.0,95617.0,0.066247]
[1732772233571,0.202367,95618.0,95617.0,0.014]
[1732772235171,0.202367,95618.0,95617.0,0.009]
[1732772235379,0.202367,95618.0,95617.0,0.012]
[1732772236075,0.202367,95618.0,95617.0,0.009]
[1732772236972,0.202367,95618.0,95612.0,9.278e-05]
[1732772236973,0.052249,95613.0,95612.0,9.278e-05]
[1732772237579,0.413049,95613.0,95612.0,9.278e-05]
[1732772238168,0.413049,95613.0,95612.0,0.00409278]
[1732772238365,0.726809,95613.0,95612.0,0.00409278]
[1732772238582,0.052256,95601.0,95600.0,0.1]
[1732772238769,0.562176,95601.0,95600.0,0.1]
[1732772240269,0.563176,95601.0,95600.0,0.101]
[1732772240779,0.57550837,95601.0,95600.0,0.101]
[1732772241479,0.563176,95601.0,95600.0,0.101]
[1732772241880,0.414056,95601.0,95600.0,0.101]
[1732772242073,0.562216,95601.0,95600.0,0.101]
[1732772242972,0.3608,95601.0,95600.0,0.101]
[1732772243176,0.3608,95601.0,95600.0,0.153256]
[1732772245379,0.14916,95606.0,95605.0,0.052254]
[1732772245790,0.14916,95606.0,95600.0,0.101]
[1732772245791,0.052256,95601.0,95600.0,0.101]
[1732772246086,0.413056,95601.0,95600.0,0.101]
[1732772246272,0.413056,95601.0,95600.0,0.28813704]
[1732772246577,0.413056,95601.0,95600.0,0.1]
[1732772248471,0.413056,95601.0,95600.0,0.101]
[1732772248873,0.42558529,95601.0,95600.0,0.101]
[1732772251282,0.052266,95582.0,95580.0,0.18870633]
[1732772251482,0.14916,95581.0,95580.0,0.18870633]
[1732772251681,0.14916,95581.0,95580.0,0.00156929]
[1732772252786,0.15016,95581.0,95580.0,0.00856929]
[1732772253377,0.15016,95581.0,95580.0,0.19591586]
[1732772253589,0.15016,95581.0,95580.0,0.00856929]
[1732772255178,0.15016,95581.0,95580.0,0.00656929]
[1732772255179,0.14916,95581.0,95580.0,0.00656929]
[1732772255389,0.15016,95581.0,95580.0,0.00756929]
[1732772255894,0.15016,95581.0,95580.0,0.00556929]
[1732772256500,0.202427,95581.0,95580.0,0.00556929]
[1732772257084,0.202427,95581.0,95580.0,0.19291586]
[1732772257285,0.202427,95581.0,95580.0,0.00556929]
[1732772258088,0.202427,95581.0,95580.0,0.004]
[1732772258785,0.053267,95581.0,95580.0,0.1914019]
[1732772259097,0.202307,95581.0,95580.0,0.004]
[1732772259286,0.202307,95581.0,95580.0,0.19142378]
[1732772259589,0.202307,95581.0,95580.0,0.004]
[1732772260190,0.202307,95581.0,95580.0,0.19142378]
[1732772260582,0.202307,95581.0,95580.0,0.004]
[1732772261090,0.202307,95581.0,95580.0,0.19142378]
[1732772261291,0.202307,95581.0,95580.0,0.004]
[1732772261882,0.201307,95581.0,95580.0,0.004]
[1732772262194,0.202307,95581.0,95580.0,0.003]
[1732772263194,0.202307,95581.0,95580.0,0.1904852]
[1732772263783,0.202307,95581.0,95580.0,0.003]
[1732772266103,0.202307,95581.0,95580.0,0.1904852]
[1732772266897,0.202307,95581.0,95580.0,0.0680012]
[1732772267193,0.202307,95581.0,95554.0,0.3608]
[1732772267194,0.052275,95566.0,95564.0,0.24970313]
[1732772267394,0.052276,95564.0,95563.0,0.24970313]
[1732772267597,0.201316,95564.0,95562.0,0.24970313]
[1732772268083,0.052278,95560.0,95558.0,0.24970313]
[1732772268289,0.052278,95560.0,95552.0,0.0622]
[1732772268290,0.052278,95560.0,95557.0,0.24970313]
[1732772268494,0.052278,95560.0,95555.0,0.24970313]
[1732772268695,0.052278,95560.0,95554.0,0.24970313]
[1732772269092,0.052278,95560.0,95559.0,0.00556965]
[1732772269491,0.053278,95560.0,95559.0,0.00656965]
[1732772270384,0.053278,95560.0,95559.0,0.01480822]
[1732772270588,0.202358,95560.0,95559.0,0.005]
[1732772273295,0.053278,95560.0,95559.0,0.005]
[1732772274397,0.202358,95560.0,95559.0,0.005]
[1732772278398,0.053278,95560.0,95559.0,0.005]
[1732772278599,0.202358,95560.0,95559.0,0.005]
[1732772279909,0.202358,95560.0,95559.0,0.057279]
[1732772280504,0.001,95560.0,95559.0,0.418079]
[1732772280704,0.001,95560.0,95559.0,0.74184697]
[1732772281709,0.001,95560.0,95559.0,0.75492302]
[1732772282010,0.3608,95572.0,95571.0,0.052272]
[1732772282397,0.3608,95572.0,95571.0,0.06534769]
[1732772282600,9.795e-05,95581.0,95577.0,0.052269]
[1732772282809,0.09367788,95580.0,95577.0,0.052269]
[1732772283000,9.795e-05,95581.0,95571.0,0.082372]
[1732772283001,0.052272,95572.0,95571.0,0.082372]
[1732772283496,0.052272,95572.0,95571.0,0.083372]
[1732772284098,0.052272,95572.0,95571.0,0.001]
[1732772286101,0.201192,95572.0,95571.0,0.001]
[1732772286803,0.39112905,95572.0,95571.0,0.001]
[1732772287408,0.40345419,95572.0,95571.0,0.001]
[1732772288597,0.21351714,95572.0,95571.0,0.001]
[1732772292307,0.201192,95572.0,95571.0,0.001]
[1732772293108,0.052272,95572.0,95571.0,0.001]
[1732772293310,0.201192,95572.0,95571.0,0.001]
[1732772295111,0.32618808,95572.0,95571.0,0.001]
[1732772295716,0.052279,95559.0,95558.0,0.25030662]
[1732772295916,0.60346544,95559.0,95558.0,0.00980738]
[1732772296110,0.50972,95559.0,95554.0,0.25064861]
[1732772296416,0.50972,95559.0,95556.0,5.716e-05]
[1732772296605,0.12499392,95558.0,95556.0,5.716e-05]
[1732772297733,0.05228,95557.0,95556.0,5.716e-05]
[1732772297916,0.17727392,95557.0,95556.0,5.716e-05]
[1732772298315,0.05228,95557.0,95556.0,5.716e-05]
[1732772298710,0.10313834,95557.0,95556.0,0.00405716]
[1732772298917,0.10313834,95557.0,95529.0,0.3747473]
[1732772298918,0.47013263,95557.0,95541.0,0.25064861]
[1732772299213,0.47013263,95557.0,95511.0,0.3608]
[1732772299214,0.052295,95530.0,95528.0,0.25064861]
[1732772299516,0.052295,95530.0,95527.0,0.25064861]
[1732772299716,0.09363561,95544.0,95540.0,0.052289]
[1732772300017,0.09363561,95546.0,95544.0,0.052287]
[1732772300318,0.09363561,95546.0,95541.0,0.40321075]
[1732772300319,0.09363179,95548.0,95545.0,0.04291075]
[1732772300516,0.17713108,95553.0,95548.0,0.052285]
[1732772300517,0.09363179,95549.0,95548.0,0.052285]
[1732772300717,0.09363179,95550.0,95548.0,0.0751739]
[1732772301015,0.001,95557.0,95549.0,0.0228889]
[1732772301214,0.052281,95555.0,95554.0,0.052281]
[1732772302816,0.057281,95555.0,95554.0,0.052281]
[1732772303119,0.063281,95555.0,95554.0,0.052281]
[1732772303817,0.10463179,95555.0,95546.0,0.2505221]
[1732772304013,0.10463179,95555.0,95547.0,0.01307867]
[1732772304014,0.45443179,95550.0,95547.0,0.01307867]
[1732772304210,0.052288,95542.0,95541.0,0.3608]
[1732772304520,0.052288,95542.0,95541.0,0.02643392]
[1732772304712,0.413088,95542.0,95541.0,0.02643392]
[1732772305016,0.052292,95534.0,95533.0,0.2505221]
[1732772305210,0.052292,95534.0,95533.0,0.02656109]
[1732772305409,0.052292,95534.0,95532.0,0.052293]
[1732772305607,0.052292,95534.0,95533.0,0.02656017]
[1732772306615,0.14896,95539.0,95538.0,0.05229]
[1732772306920,0.14896,95539.0,95538.0,0.01308044]
[1732772307125,0.14896,95539.0,95533.0,0.001]
[1732772307323,0.052291,95537.0,95536.0,0.052291]
[1732772307624,0.052291,95537.0,95536.0,0.07902749]
[1732772308815,0.052291,95537.0,95536.0,0.06537146]
[1732772309015,0.052291,95537.0,95536.0,0.07899062]
[1732772309212,0.052291,95537.0,95536.0,0.07999062]
[1732772310127,0.052291,95537.0,95536.0,0.01408046]
[1732772311726,0.14896,95539.0,95537.0,0.052291]
[1732772311921,0.14896,95539.0,95538.0,0.01308046]
[1732772312323,0.14896,95539.0,95538.0,0.02672255]
[1732772312739,0.14896,95539.0,95538.0,0.01359773]
[1732772312928,0.09361349,95550.0,95538.0,0.02667708]
[1732772313224,0.052286,95547.0,95545.0,0.052286]
[1732772313420,0.052286,95547.0,95546.0,0.01307935]
[1732772314623,0.052287,95544.0,95542.0,0.085088]
[1732772314819,0.052285,95549.0,95543.0,0.01307911]
[1732772315027,0.03338343,95556.0,95542.0,0.0328]
[1732772315028,0.052286,95545.0,95544.0,0.06536611]
[1732772316119,0.053286,95545.0,95544.0,0.06536611]
[1732772316322,0.055286,95545.0,95544.0,0.06536611]
[1732772317129,0.055286,95545.0,95544.0,0.01307911]
[1732772319425,0.055286,95545.0,95541.0,0.413089]
[1732772319426,0.052288,95542.0,95541.0,0.413089]
[1732772319628,0.052288,95542.0,95541.0,0.43975393]
[1732772320126,0.052292,95536.0,95535.0,0.052292]
[1732772320331,0.201172,95536.0,95535.0,0.052292]
[1732772320926,0.052289,95533.0,95532.0,0.2505221]
[1732772321128,0.052289,95533.0,95532.0,0.02670711]
[1732772321321,0.052289,95533.0,95532.0,0.01308065]
[1732772321533,0.052289,95533.0,95532.0,0.0267079]
[1732772322136,0.052289,95533.0,95532.0,0.00981039]
[1732772322330,0.052289,95533.0,95532.0,0.26033249]
[1732772322636,0.052289,95533.0,95532.0,0.02329089]
[1732772322823,0.053289,95533.0,95532.0,0.02329089]
[1732772323024,0.001,95533.0,95532.0,0.08865856]
[1732772323640,0.001,95533.0,95532.0,0.7830059]
[1732772323827,0.001,95533.0,95532.0,0.47039514]
[1732772324226,0.064721,95541.0,95539.0,0.052284]
[1732772324430,0.06472,95541.0,95540.0,0.44945433]
[1732772324635,0.06472,95541.0,95540.0,0.43964394]